bitfinex-derivatives/quotes_SOLF0:USTF0_20250527
["timestamp","ask_amount","ask_price","bid_price","bid_amount"]
[1748357006987,0.03911759,176.5,176.48,5.6636]
[1748357007175,0.03911759,176.5,176.46,0.04293912]
[1748357008490,5.70231759,176.5,176.46,0.04293912]
[1748357008993,0.03911759,176.5,176.46,0.04293912]
[1748357009189,5.6637,176.49,176.46,0.04293912]
[1748357009485,0.03911759,176.5,176.46,0.04293912]
[1748357009690,5.6638,176.48,176.46,0.04293912]
[1748357010289,0.03911759,176.5,176.46,0.04293912]
[1748357010488,33.86,176.54,176.46,33.92293912]
[1748357010689,33.88,176.58,176.49,5.6634]
[1748357010893,33.88,176.58,176.47,1.8964]
[1748357011386,5.6623,176.53,176.49,5.6634]
[1748357011595,0.03833938,176.53,176.49,0.03784487]
[1748357011989,0.03833938,176.53,176.49,5.70124487]
[1748357012489,5.70043938,176.53,176.49,5.70124487]
[1748357012790,0.03833938,176.53,176.49,5.70124487]
[1748357013385,0.03833938,176.53,176.5,5.6629]
[1748357013580,0.03833938,176.53,176.49,0.03784487]
[1748357014991,0.03833938,176.53,176.51,5.6626]
[1748357015592,0.03833938,176.53,176.5,5.663]
[1748357015803,0.03833938,176.53,176.49,0.03784487]
[1748357016282,5.6625,176.52,176.49,0.03784487]
[1748357016489,33.91833938,176.53,176.49,0.03784487]
[1748357016993,33.91833938,176.53,176.51,5.6625]
[1748357017191,33.91833938,176.53,176.49,0.03784487]
[1748357019600,5.6627,176.52,176.49,0.03784487]
[1748357019792,33.91833938,176.53,176.49,0.03784487]
[1748357020497,0.03833938,176.53,176.49,0.03784487]
[1748357021301,0.03833938,176.53,176.52,5.6625]
[1748357024101,0.03833938,176.53,176.52,39.5425]
[1748357025393,33.88,176.62,176.57,5.6608]
[1748357026105,5.6601,176.6,176.57,5.6608]
[1748357026397,5.70129181,176.6,176.57,5.70086222]
[1748357026601,6.90163436,176.69,176.58,41.66289627]
[1748357026791,13.64018278,176.75,176.61,7.78289627]
[1748357027001,13.64018278,176.75,176.58,33.88]
[1748357027002,13.64018278,176.75,176.62,120.5928]
[1748357027303,13.64018278,176.75,176.63,33.86]
[1748357027504,21.42307905,176.75,176.67,0.04341874]
[1748357027699,5.6566,176.71,176.67,0.04341874]
[1748357028006,33.86,176.73,176.67,0.04341874]
[1748357028199,5.657,176.7,176.67,0.04341874]
[1748357028400,33.86,176.73,176.67,0.04341874]
[1748357028693,5.6566,176.71,176.67,0.04341874]
[1748357028900,33.86,176.73,176.67,0.04341874]
[1748357029504,5.6568,176.7,176.67,0.04341874]
[1748357029701,33.86,176.73,176.67,0.04341874]
[1748357029902,5.6573,176.69,176.67,0.04341874]
[1748357030097,33.86,176.73,176.67,0.04341874]
[1748357030497,5.6573,176.68,176.67,0.04341874]
[1748357032304,33.86,176.73,176.67,0.04341874]
[1748357032703,5.6572,176.69,176.67,0.04341874]
[1748357033405,5.6573,176.68,176.67,0.04341874]
[1748357034311,5.6571,176.69,176.67,0.04341874]
[1748357036305,5.6565,176.71,176.67,0.04341874]
[1748357036507,6.1173,176.77,176.67,0.04341874]
[1748357036806,5.6552,176.75,176.7,5.6567]
[1748357037010,6.1173,176.77,176.71,0.03937031]
[1748357037210,5.6556,176.74,176.71,0.03937031]
[1748357037917,6.1173,176.77,176.71,0.03937031]
[1748357037918,5.6552,176.75,176.71,0.03937031]
[1748357038319,5.656,176.73,176.71,0.03937031]
[1748357039120,5.6561,176.72,176.71,0.03937031]
[1748357040624,5.6581,176.66,176.64,33.72]
[1748357040826,33.72,176.74,176.6,33.72]
[1748357041329,33.72,176.74,176.65,5.6581]
[1748357041723,0.04058964,176.71,176.68,0.03913616]
[1748357043024,5.657,176.69,176.68,0.03913616]
[1748357045121,5.69728964,176.71,176.68,0.03913616]
[1748357045319,0.04058964,176.71,176.68,0.03913616]
[1748357045730,5.6569,176.7,176.68,0.03913616]
[1748357045933,0.04058964,176.71,176.68,0.03913616]
[1748357046323,5.6569,176.7,176.68,0.03913616]
[1748357046526,0.04058964,176.71,176.68,0.03913616]
[1748357047133,0.04058964,176.71,176.68,5.69623616]
[1748357047631,5.69708964,176.71,176.68,0.03913616]
[1748357047822,0.04058964,176.71,176.68,0.03913616]
[1748357048227,5.657,176.69,176.68,0.03913616]
[1748357052437,0.04058964,176.71,176.68,0.03913616]
[1748357052937,5.6569,176.7,176.68,0.03913616]
[1748357053233,0.04058964,176.71,176.68,0.03913616]
[1748357053436,5.657,176.7,176.68,0.03913616]
[1748357053636,0.04058964,176.71,176.68,0.03913616]
[1748357053936,5.6569,176.7,176.68,0.03913616]
[1748357054441,0.04058964,176.71,176.68,0.03913616]
[1748357054939,5.6567,176.7,176.68,0.03913616]
[1748357055134,0.04058964,176.71,176.68,0.03913616]
[1748357055338,5.657,176.69,176.68,0.03913616]
[1748357056438,0.04058964,176.71,176.68,0.03913616]
[1748357056642,10.32736317,176.85,176.68,131.82878124]
[1748357056936,23.90990825,176.85,176.69,3.9658]
[1748357057140,5.6531,176.82,176.69,3.9658]
[1748357057340,13.58254508,176.85,176.76,5.6547]
[1748357057533,5.6526,176.83,176.71,33.72]
[1748357057734,5.6526,176.83,176.75,0.04126028]
[1748357057936,5.6526,176.83,176.77,5.6543]
[1748357058146,5.8129,176.85,176.75,0.04126028]
[1748357058743,5.8129,176.85,176.76,5.6547]
[1748357058744,5.6532,176.82,176.76,5.6547]
[1748357059038,5.8129,176.85,176.77,0.03633802]
[1748357059239,5.654,176.79,176.77,0.03633802]
[1748357059450,33.72,176.82,176.77,0.03633802]
[1748357059741,5.6541,176.79,176.77,0.03633802]
[1748357060447,3.8127,176.85,176.77,0.03633802]
[1748357061047,9.4647,176.85,176.8,5.6532]
[1748357061342,9.4647,176.85,176.72,7.76964508]
[1748357061343,3.8127,176.85,176.81,0.0433937]
[1748357061646,3.8127,176.85,176.81,0.04233352]
[1748357061845,5.6524,176.84,176.81,0.04233352]
[1748357062048,38.28791667,176.86,176.81,0.04233352]
[1748357062440,43.93961667,176.86,176.81,0.04233352]
[1748357063448,5.6523,176.84,176.81,0.04233352]
[1748357063638,38.28791667,176.86,176.81,0.04233352]
[1748357063844,38.28791667,176.86,176.82,5.6528]
[1748357064040,36.93796918,176.86,176.82,5.6528]
[1748357064437,36.93796918,176.86,176.81,5.69543352]
[1748357064641,36.93796918,176.86,176.81,0.04233352]
[1748357065342,3.9092,176.85,176.81,0.04233352]
[1748357065548,5.6529,176.82,176.81,0.04233352]
[1748357066644,3.9092,176.85,176.73,2.0109]
[1748357066846,3.9092,176.85,176.75,5.6549]
[1748357067042,5.6542,176.78,176.73,2.0109]
[1748357067237,33.56,176.81,176.73,2.0109]
[1748357067744,5.6551,176.76,176.75,0.04022729]
[1748357070556,5.6545,176.77,176.75,0.04022729]
[1748357071147,5.6548,176.76,176.75,0.04022729]
[1748357071852,0.03794343,176.79,176.75,0.04022729]
[1748357072254,5.6542,176.78,176.75,0.04022729]
[1748357072457,0.03794343,176.79,176.75,5.69532729]
[1748357072659,0.03794343,176.79,176.75,0.04022729]
[1748357073158,0.03794343,176.79,176.75,5.69532729]
[1748357073359,5.6542,176.78,176.75,0.04022729]
[1748357073857,5.69204343,176.79,176.75,0.04022729]
[1748357074058,5.69204343,176.79,176.75,5.69512729]
[1748357074558,5.6542,176.78,176.75,0.04022729]
[1748357075343,5.6542,176.78,176.75,5.69522729]
[1748357075556,5.6542,176.78,176.75,0.04022729]
[1748357075751,0.03794343,176.79,176.75,0.04022729]
[1748357075752,5.69184343,176.79,176.75,0.04022729]
[1748357076251,5.69184343,176.79,176.75,5.69512729]
[1748357076457,0.03794343,176.79,176.75,0.04022729]
[1748357077753,5.6548,176.76,176.75,0.04022729]
[1748357080362,5.6561,176.72,176.65,5.9897]
[1748357080551,33.56,176.76,176.69,5.6568]
[1748357080857,33.56,176.76,176.65,5.9897]
[1748357081166,5.6558,176.73,176.69,5.6568]
[1748357081464,5.6558,176.73,176.69,5.69416716]
[1748357081465,5.69359065,176.73,176.69,5.69416716]
[1748357082163,0.03779065,176.73,176.69,0.03736716]
[1748357082557,0.03779065,176.73,176.71,5.6563]
[1748357084361,0.03779065,176.73,176.72,5.6561]
[1748357086571,6.92681027,176.85,176.73,11.3115]
[1748357086774,10.16477945,176.86,176.74,33.56]
[1748357087075,8.88956918,176.86,176.83,5.6523]
[1748357087269,3.23796918,176.86,176.74,33.56]
[1748357087570,10.32736317,176.89,176.78,0.03580574]
[1748357087770,7.078e-05,176.82,176.76,29.44769535]
[1748357087965,12.57571027,176.95,176.77,11.3088]
[1748357088160,12.57571027,176.95,176.89,5.6505]
[1748357088467,12.57571027,176.95,176.83,33.56]
[1748357088468,6.92681027,176.95,176.83,33.56]
[1748357088668,6.92681027,176.95,176.87,0.03997566]
[1748357089266,33.56,176.97,176.87,0.03997566]
[1748357089867,33.56,176.97,176.88,33.56]
[1748357090062,33.56,176.97,176.91,0.03654008]
[1748357090262,33.56,177.01,176.91,0.03654008]
[1748357090569,33.56,177.01,176.94,0.03581579]
[1748357090769,33.56,177.01,176.96,5.6484]
[1748357091170,33.56,177.01,176.94,0.03581579]
[1748357091376,33.56,177.01,176.96,5.6484]
[1748357092083,39.2071,177.01,176.94,0.03581579]
[1748357092576,33.56,177.01,176.94,0.03581579]
[1748357092768,3.8343,177.05,176.94,0.03581579]
[1748357093077,33.42,177.04,176.98,0.04267486]
[1748357094375,5.6472,177.0,176.98,0.04267486]
[1748357094675,33.42,177.04,176.98,0.04267486]
[1748357094873,5.6474,176.99,176.98,0.04267486]
[1748357095471,5.6471,177.0,176.98,0.04267486]
[1748357096272,5.6469,177.01,176.98,0.04267486]
[1748357096580,33.42,177.04,176.98,0.04267486]
[1748357097080,5.6468,177.02,176.98,0.04267486]
[1748357097274,33.42,177.04,176.98,0.04267486]
[1748357098068,5.6463,177.03,176.98,0.04267486]
[1748357098680,5.6468,177.01,176.98,0.04267486]
[1748357098876,33.42,177.04,176.98,0.04267486]
[1748357099475,5.6467,177.02,176.98,0.04267486]
[1748357099991,33.42,177.04,176.98,0.04267486]
[1748357100775,5.647,177.01,176.98,0.04267486]
[1748357100974,33.42,177.04,176.89,1.9418]
[1748357101181,12.40769535,177.02,176.85,33.4]
[1748357101877,12.40769535,177.02,176.83,4.06294469]
[1748357102176,0.03940815,176.95,176.91,0.04108698]
[1748357102377,33.4,176.94,176.91,0.03675983]
[1748357103472,39.049,176.94,176.91,0.03675983]
[1748357103874,33.4,176.94,176.91,0.03675983]
[1748357104874,0.03757354,176.95,176.91,0.03675983]
[1748357105378,0.03757354,176.95,176.94,5.649]
[1748357106676,0.03757354,176.95,176.91,0.03675983]
[1748357107380,0.03757354,176.95,176.93,5.6492]
[1748357107676,0.03757354,176.95,176.91,0.03675983]
[1748357107877,0.03757354,176.95,176.94,5.649]
[1748357109776,33.4,177.02,176.92,5.8482]
[1748357110774,33.4,177.02,176.95,0.04014075]
[1748357112182,39.0465,177.02,176.95,0.04014075]
[1748357112375,33.4,177.02,176.97,5.648]
[1748357112781,5.646,177.04,177.0,5.6469]
[1748357112978,5.646,177.04,177.0,5.68485967]
[1748357113689,7.5769,177.05,177.01,5.6468]
[1748357113891,7.5769,177.05,177.0,0.03795967]
[1748357113892,1.9313,177.05,177.0,0.03795967]
[1748357114196,33.4,177.06,177.0,0.03795967]
[1748357115787,33.4,177.06,176.92,5.8482]
[1748357115788,5.6472,177.0,176.95,5.6485]
[1748357116295,33.4,177.01,176.92,3.9222]
[1748357116493,33.4,177.12,176.93,33.4]
[1748357116696,33.4,177.13,176.93,33.4]
[1748357116888,0.03769604,177.05,177.01,0.03909097]
[1748357117089,39.0432,177.13,177.05,5.6453]
[1748357117292,0.03806554,177.11,177.07,0.04005719]
[1748357118094,0.03806554,177.11,177.1,5.6439]
[1748357118796,0.03806554,177.11,177.07,0.04005719]
[1748357119895,5.68166554,177.11,177.07,0.04005719]
[1748357120090,0.03806554,177.11,177.07,0.04005719]
[1748357120296,5.6454,177.06,177.0,39.047]
[1748357120493,5.6454,177.06,177.0,33.4]
[1748357120694,33.38,177.08,177.0,33.4]
[1748357120904,5.6454,177.06,177.0,39.0469]
[1748357121194,0.03801484,177.05,177.01,0.03955199]
[1748357121397,5.68351484,177.05,177.01,0.03955199]
[1748357121699,0.03801484,177.05,177.01,0.03955199]
[1748357123492,5.6465,177.02,177.01,0.03955199]
[1748357125297,7.538,177.02,177.01,0.03955199]
[1748357125702,3.7615,177.02,176.92,521.42]
[1748357125901,3.7615,177.02,176.92,33.32]
[1748357126199,5.6481,176.97,176.93,5.6493]
[1748357126517,3.7615,177.02,176.9,2.02375795]
[1748357126700,5.6487,176.95,176.94,0.03923525]
[1748357126896,33.35899929,176.98,176.9,2.02375795]
[1748357127205,1.9166,176.97,176.9,2.02375795]
[1748357128002,0.03713944,176.95,176.92,0.04335476]
[1748357128202,0.03713944,176.95,176.9,2.02375795]
[1748357128397,5.6498,176.92,176.9,2.02375795]
[1748357128602,38.9698,176.92,176.9,2.02375795]
[1748357128910,5.65,176.91,176.9,2.02375795]
[1748357129110,33.32,176.92,176.9,2.02375795]
[1748357129312,33.32,176.92,176.89,0.04265053]
[1748357129512,33.32,176.92,176.86,2.02528419]
[1748357130113,5.6505,176.9,176.86,2.02528419]
[1748357130307,33.32,176.92,176.88,5.6507]
[1748357130614,33.32,176.92,176.88,0.03987827]
[1748357130615,0.03994422,176.92,176.88,0.03987827]
[1748357131004,0.03994422,176.92,176.91,5.65]
[1748357132213,0.03994422,176.92,176.9,5.6502]
[1748357132514,0.03994422,176.92,176.88,0.03987827]
[1748357132813,0.03994422,176.92,176.9,5.65]
[1748357133003,0.03994422,176.92,176.88,0.03987827]
[1748357133401,0.03994422,176.92,176.91,5.65]
[1748357134316,0.03994422,176.92,176.88,0.03987827]
[1748357134517,5.65,176.91,176.88,0.03987827]
[1748357134711,33.32,176.91,176.88,0.03987827]
[1748357135019,0.03994422,176.92,176.91,5.65]
[1748357135713,1.9166,176.97,176.96,5.6484]
[1748357136804,0.03681936,176.98,176.97,5.6481]
[1748357139716,33.32,177.05,177.02,5.6463]
[1748357140622,0.04306781,177.05,177.02,0.03809698]
[1748357141220,0.04306781,177.05,177.04,5.6458]
[1748357142713,35.42,177.13,177.02,0.03809698]
[1748357142914,37.2885,177.18,177.01,35.42]
[1748357143115,5.6418,177.17,177.01,35.42]
[1748357143316,37.2885,177.18,177.0,14.33369535]
[1748357143522,37.2885,177.18,177.01,157.58]
[1748357143709,0.03841866,177.11,177.1,5.6439]
[1748357143914,0.0396742,177.12,177.09,0.04003915]
[1748357144213,0.04136316,177.12,177.09,0.03602584]
[1748357144417,0.04136316,177.12,177.11,5.6436]
[1748357146513,37.4517,177.22,177.11,35.4]
[1748357146721,35.4,177.28,177.11,157.92]
[1748357146921,35.4,177.28,177.12,12.40769535]
[1748357147320,35.4,177.28,177.24,5.6395]
[1748357147624,0.04289807,177.26,177.24,5.6395]
[1748357149216,0.04289807,177.26,177.23,36.8592968]
[1748357149619,36.82,177.39,177.23,42.4992968]
[1748357149825,36.82,177.39,177.23,36.82]
[1748357150624,0.04315057,177.33,177.29,0.03652542]
[1748357151219,5.6372,177.32,177.29,0.03652542]
[1748357151420,0.04315057,177.33,177.29,0.03652542]
[1748357152127,0.04315057,177.33,177.19,38.7186]
[1748357152317,36.8,177.34,177.19,38.7186]
[1748357152722,5.6381,177.29,177.19,38.7186]
[1748357152922,36.8,177.34,177.19,38.7186]
[1748357153125,0.04178996,177.28,177.25,0.03570281]
[1748357153816,5.6387,177.27,177.25,0.03570281]
[1748357154024,0.04178996,177.28,177.25,0.03570281]
[1748357155430,0.04178996,177.28,177.25,5.67460281]
[1748357155619,0.04178996,177.28,177.25,0.03570281]
[1748357156420,5.6387,177.27,177.25,0.03570281]
[1748357157525,0.04178996,177.28,177.25,0.03570281]
[1748357160125,5.6385,177.27,177.25,0.03570281]
[1748357160328,0.04178996,177.28,177.25,0.03570281]
[1748357161124,5.6387,177.27,177.25,0.03570281]
[1748357161333,0.04178996,177.28,177.25,0.03570281]
[1748357161723,0.04178996,177.28,177.07,415.0]
[1748357161724,0.04178996,177.28,177.18,38.42]
[1748357161927,3.9113,177.28,177.15,38.42]
[1748357162226,12.40769535,177.25,177.09,487.38]
[1748357162421,38.42,177.24,177.09,487.38]
[1748357162827,0.0362275,177.18,177.15,0.03677694]
[1748357163327,0.0362275,177.18,177.17,5.6417]
[1748357163534,38.42,177.24,177.15,0.03677694]
[1748357163734,5.6393,177.25,177.15,0.03677694]
[1748357164033,38.42,177.28,177.13,3.9831]
[1748357164534,0.03764742,177.22,177.19,0.0426088]
[1748357166730,5.67794742,177.22,177.19,0.0426088]
[1748357167438,5.6405,177.21,177.15,5.6421]
[1748357167826,5.6405,177.21,177.14,38.42]
[1748357168025,0.03764742,177.22,177.16,5.642]
[1748357168423,0.03764742,177.22,177.14,38.42]
[1748357168424,0.03764742,177.22,177.17,0.04121608]
[1748357169132,0.03764742,177.22,177.19,5.6408]
[1748357169931,0.03764742,177.22,177.17,0.04121608]
[1748357171334,0.03764742,177.22,177.19,5.6408]
[1748357171537,0.03764742,177.22,177.17,0.04121608]
[1748357173246,5.6404,177.21,177.17,0.04121608]
[1748357173623,0.03764742,177.22,177.17,0.04121608]
[1748357174027,12.40769535,177.21,177.04,3.9324]
[1748357174234,4.0758,177.22,177.04,169.5724]
[1748357174734,5.6423,177.16,177.04,169.5724]
[1748357174932,0.03802453,177.12,177.08,0.03738312]
[1748357175130,0.04239407,177.12,177.08,0.03800068]
[1748357176435,4.0758,177.22,177.08,0.03800068]
[1748357176436,38.42,177.28,177.09,38.42]
[1748357177028,38.42,177.28,177.1,73.2878]
[1748357177227,5.6407,177.2,177.1,1.9274]
[1748357177431,0.03975937,177.17,177.13,0.03752084]
[1748357177634,0.04221134,177.17,177.13,0.0387737]
[1748357177832,0.04221134,177.17,177.16,5.642]
[1748357180147,0.04221134,177.17,177.13,0.0387737]
[1748357180652,0.04221134,177.17,177.14,5.6424]
[1748357180951,0.04221134,177.17,177.13,0.0387737]
[1748357181139,0.04221134,177.17,177.16,5.642]
[1748357181848,1.134e-05,177.17,177.16,5.642]
[1748357182040,39.8,177.26,177.21,5.6402]
[1748357182234,39.8,177.26,177.12,39.8]
[1748357182538,39.8,177.26,177.18,5.6414]
[1748357182740,5.64,177.23,177.18,5.6414]
[1748357182944,0.0379426,177.22,177.19,0.03856993]
[1748357183244,0.0379426,177.22,177.19,5.67956993]
[1748357183446,0.0379426,177.22,177.19,0.03856993]
[1748357183837,5.6783426,177.22,177.19,0.03856993]
[1748357184038,0.0379426,177.22,177.19,0.03856993]
[1748357185641,5.6782426,177.22,177.19,0.03856993]
[1748357185956,0.0379426,177.22,177.19,0.03856993]
[1748357186455,0.0379426,177.22,177.19,5.67956993]
[1748357186651,0.0379426,177.22,177.19,0.03856993]
[1748357187956,39.8,177.21,177.1,1.9274]
[1748357188247,3.9896,177.2,177.1,1.9274]
[1748357188648,5.6421,177.16,177.12,5.6432]
[1748357188857,0.04161187,177.16,177.12,0.04178759]
[1748357190445,0.04161187,177.16,177.13,5.6429]
[1748357190641,0.04161187,177.16,177.12,0.04178759]
[1748357191251,0.04161187,177.16,177.13,5.6429]
[1748357191446,0.04161187,177.16,177.12,0.04178759]
[1748357192455,0.04161187,177.16,177.15,5.6423]
[1748357194857,43.6767,177.25,177.13,39.8]
[1748357195359,43.6767,177.25,177.16,5.642]
[1748357195658,0.03596835,177.22,177.19,0.03742853]
[1748357196260,5.6407,177.21,177.19,0.03742853]
[1748357196562,0.03596835,177.22,177.19,0.03742853]
[1748357196852,5.6407,177.2,177.19,0.03742853]
[1748357197249,5.6405,177.21,177.19,0.03742853]
[1748357197652,0.03596835,177.22,177.19,0.03742853]
[1748357197846,5.6407,177.2,177.19,0.03742853]
[1748357198559,0.03596835,177.22,177.19,0.03742853]
[1748357201850,5.6407,177.2,177.19,0.03742853]
[1748357202450,0.03596835,177.22,177.19,0.03742853]
[1748357203567,5.6407,177.2,177.19,0.03742853]
[1748357206460,0.03596835,177.22,177.19,0.03742853]
[1748357206657,6.94197939,177.3,177.2,39.8]
[1748357206860,6.94197939,177.3,177.29,5.6379]
[1748357207264,12.32646909,177.37,177.25,39.8]
[1748357207663,0.04140135,177.33,177.29,0.04245843]
[1748357208860,0.04140135,177.33,177.32,5.6369]
[1748357211671,38.74,177.43,177.41,5.634]
[1748357211871,1.9959,177.44,177.3,1.928]
[1748357212062,1.9959,177.44,177.31,38.74]
[1748357212264,5.6343,177.41,177.31,38.74]
[1748357212764,1.9959,177.44,177.34,0.03859582]
[1748357213967,5.6337,177.43,177.37,5.6351]
[1748357214172,5.6337,177.43,177.38,0.04006549]
[1748357214472,1.9959,177.44,177.38,0.04006549]
[1748357214862,1.9959,177.44,177.3,1.928]
[1748357215177,5.6349,177.39,177.33,5.6364]
[1748357215673,5.6349,177.39,177.3,1.928]
[1748357215873,0.0376994,177.36,177.34,5.6362]
[1748357216070,0.0376994,177.36,177.33,0.04323077]
[1748357216675,0.0376994,177.36,177.33,5.67973077]
[1748357216875,0.0376994,177.36,177.33,0.04323077]
[1748357218066,38.7776994,177.36,177.33,0.04323077]
[1748357218864,5.6363,177.34,177.33,0.04323077]
[1748357219065,38.7776994,177.36,177.28,5.6381]
[1748357219265,5.6364,177.34,177.28,5.6381]
[1748357219673,38.7776994,177.36,177.25,38.74]
[1748357219873,5.6372,177.32,177.25,38.74]
[1748357220170,5.6372,177.32,177.27,5.68076914]
[1748357220171,0.03928815,177.3,177.27,5.68076914]
[1748357220363,0.03928815,177.3,177.27,0.04246914]
[1748357220765,5.67688815,177.3,177.27,0.04246914]
[1748357220967,0.03928815,177.3,177.27,0.04246914]
[1748357221771,0.03928815,177.3,177.28,5.638]
[1748357222664,0.03928815,177.3,177.29,5.6379]
[1748357224375,40.6846,177.4,177.27,0.04246914]
[1748357224666,40.6846,177.4,177.28,124.86]
[1748357225175,40.6846,177.4,177.27,1.9427]
[1748357225369,0.0385992,177.35,177.32,0.04162571]
[1748357225868,0.0385992,177.35,177.33,5.6366]
[1748357226271,0.0385992,177.35,177.32,0.04162571]
[1748357227178,38.7785992,177.35,177.32,0.04162571]
[1748357227376,38.7785992,177.35,177.22,40.7068]
[1748357227584,5.6373,177.31,177.22,40.7068]
[1748357227871,38.74,177.35,177.22,40.7068]
[1748357228079,38.72,177.38,177.33,5.6364]
[1748357228274,38.72,177.38,177.22,1.9668]
[1748357228570,0.04165321,177.32,177.29,5.6378]
[1748357228773,0.04165321,177.32,177.29,5.67795785]
[1748357229078,0.04165321,177.32,177.29,0.04015785]
[1748357229575,5.6376,177.31,177.29,0.04015785]
[1748357229777,0.04165321,177.32,177.29,0.04015785]
[1748357230976,5.6378,177.31,177.29,0.04015785]
[1748357231169,0.04165321,177.32,177.29,0.04015785]
[1748357232765,0.04165321,177.32,177.29,5.67815785]
[1748357232967,0.04165321,177.32,177.29,0.04015785]
[1748357233366,0.04165321,177.32,177.29,5.67835785]
[1748357233569,0.04165321,177.32,177.29,0.04015785]
[1748357234776,0.04165321,177.32,177.3,5.6379]
[1748357235180,0.04165321,177.32,177.29,0.04015785]
[1748357239490,0.04165321,177.32,177.3,5.6379]
[1748357241483,0.04165321,177.32,177.31,5.6376]
[1748357241795,0.04165321,177.32,177.29,0.04015785]
[1748357241993,0.04165321,177.32,177.31,5.6376]
[1748357242482,0.04165321,177.32,177.29,0.04015785]
[1748357243581,5.67915321,177.32,177.29,0.04015785]
[1748357244484,0.04165321,177.32,177.29,0.04015785]
[1748357244877,37.72,177.31,177.29,0.04015785]
[1748357245182,37.72,177.31,177.18,487.16]
[1748357245387,41.6459,177.31,177.18,487.16]
[1748357245989,5.6396,177.25,177.2,5.641]
[1748357246285,0.04117765,177.24,177.21,0.03819049]
[1748357246486,0.04117765,177.24,177.21,5.67899049]
[1748357246487,0.03633084,177.24,177.21,5.67899049]
[1748357247983,0.03633084,177.24,177.21,0.03819049]
[1748357250075,5.6405,177.22,177.21,0.03819049]
[1748357250281,0.03633084,177.24,177.21,0.03819049]
[1748357250687,5.67623084,177.24,177.21,0.03819049]
[1748357250886,0.03633084,177.24,177.21,0.03819049]
[1748357251880,0.03633084,177.24,177.22,5.6405]
[1748357252082,0.03633084,177.24,177.21,0.03819049]
[1748357253091,0.03633084,177.24,177.23,5.6402]
[1748357254183,0.03633084,177.24,177.22,5.6404]
[1748357254383,0.03633084,177.24,177.21,0.03819049]
[1748357254584,0.03633084,177.24,177.11,3.8024]
[1748357254784,37.74,177.26,177.17,5.6419]
[1748357255484,37.74,177.26,177.2,0.04258392]
[1748357255485,0.04248283,177.23,177.2,0.04258392]
[1748357255678,0.04248283,177.23,177.11,1.9328]
[1748357255882,37.74,177.26,177.11,1.9328]
[1748357256081,5.6415,177.2,177.11,1.9328]
[1748357256285,37.74,177.2,177.11,1.9328]
[1748357256485,37.74,177.2,177.14,5.6429]
[1748357256685,5.67746273,177.19,177.15,0.04053468]
[1748357256989,0.03586273,177.19,177.15,0.04053468]
[1748357257377,5.642,177.18,177.15,0.04053468]
[1748357257586,0.03586273,177.19,177.15,0.04053468]
[1748357257786,5.67756273,177.19,177.15,0.04053468]
[1748357258285,5.642,177.18,177.15,0.04053468]
[1748357258486,0.03586273,177.19,177.15,0.04053468]
[1748357258687,1.90046273,177.19,177.15,0.04053468]
[1748357258888,5.6424,177.16,177.15,0.04053468]
[1748357261089,5.6424,177.16,177.09,2.04779017]
[1748357261090,5.64,177.16,177.09,2.04779017]
[1748357261385,5.7725,177.19,177.09,2.04779017]
[1748357261692,5.6428,177.16,177.09,2.04779017]
[1748357261991,36.38,177.18,177.12,5.6437]
[1748357262193,0.0430685,177.17,177.13,0.03934797]
[1748357262392,5.6853685,177.17,177.13,0.03934797]
[1748357262791,0.0430685,177.17,177.13,0.03934797]
[1748357263493,5.6431,177.14,177.13,0.03934797]
[1748357263991,5.6427,177.16,177.13,0.03934797]
[1748357264191,0.0430685,177.17,177.13,0.03934797]
[1748357264993,5.6431,177.14,177.13,0.03934797]
[1748357265186,0.0430685,177.17,177.13,0.03934797]
[1748357265888,5.6431,177.14,177.13,0.03934797]
[1748357266188,0.0430685,177.17,177.13,0.03934797]
[1748357266383,5.6852685,177.17,177.13,0.03934797]
[1748357267094,0.0430685,177.17,177.13,0.03934797]
[1748357267597,487.36,177.25,177.13,36.41934797]
[1748357267786,36.38,177.27,177.14,2.0355]
[1748357268188,36.38,177.27,177.2,5.641]
[1748357268690,0.03724451,177.25,177.22,0.03564478]
[1748357269786,5.6403,177.23,177.22,0.03564478]
[1748357271793,5.6403,177.23,177.15,5.6426]